Workbook

Sheet Weight & Volume Calculator
B1: Catholic Relief Services - USCCB
B2: COMMODITY WEIGHT, VOLUME AND TRANSPORT ASSET CALCULATOR
B3: Country Program: | G3: Date:
B4: Whse / Field Office: | G4: Delivery Point:
G6: Est. avg. persons per household: | I6: 5.6 | K6: (A)
G7: Number of households targeted: | I7: 1,000 | J7: (household rations) | K7: (B) | M7: =I8 -> 5,600
G8: Total estimated beneficiaries: | I8: =ROUNDUP(I6*I7,0) -> 5,600 | J8: (individual rations) | K8: (C = B * A)
G9: Ration period coverage: | I9: 30 | J9: days | K9: (D)
B12: BULK FOOD COMMODITIES
B13: DESCRIPTION | E13: PACKAGING / UNIT MEASURE | F13: UNIT WEIGHT (KG) (E) | G13: UNIT VOLUME (Cubic M) (F) | H13: DAILY RATION IN GRAMS (G) | I13: TOTAL RATION WEIGHT (KG) (H = C * D * G / 1,000) | J13: TOTAL UNITS REQ'D (I = H / E) | K13: TOTAL VOLUME (Cubic M) (I * F)
B14: Sorghum (50 KG sacks) | E14: Sack | F14: =IF(B14="",0,VLOOKUP($B14,$B$57:$E$86,4)) -> 50.00 | G14: =IF(B14="",0,VLOOKUP($B14,$B$57:$E$86,3)) -> 0.080 | H14: 400.0 | I14: =(I$8*I$9*H14)/1000 -> 67,200.0 | J14: =ROUNDUP(IF(F14=0,0,I14/F14),0) -> 1,344 | K14: =IF(H14=0,0,J14*G14) -> 107.5
B15: Peas (50 KG sacks) | E15: Sack | F15: =IF(B15="",0,VLOOKUP($B15,$B$57:$E$86,4)) -> 50.00 | G15: =IF(B15="",0,VLOOKUP($B15,$B$57:$E$86,3)) -> 0.080 | H15: 80.0 | I15: =(I$8*I$9*H15)/1000 -> 13,440.0 | J15: 269 | K15: 21.5
B16: Veg oil, 5L Jugs | E16: Carton | F16: 23.18 | G16: 0.026 | H16: 33.3 | I16: 5,594.4 | J16: 242 | K16: 6.4
B17: Salt, Iodized (25 KG sacks) | E17: Sack | F17: 25.00 | G17: 0.035 | H17: 5.0 | I17: 840.0 | J17: 34 | K17: 1.2
F18: 0.00 | G18: 0.000 | I18: 0.0 | J18: 0 | K18: 0.0
F19: 0.00 | G19: 0.000 | I19: 0.0 | J19: 0 | K19: 0.0
I20: 0.0 | J20: 0 | K20: 0.0
I21: 0.0 | J21: 0 | K21: 0.0
I22: 0.0 | J22: 0 | K22: 0.0
B23: BULK FOOD -- COLUMN TOTALS: | I23: =ROUNDUP(SUM(I$14:I22),0) -> 87,075.0 | J23: =ROUNDUP(SUM(J$14:J22),2) -> 1,889 | K23: =ROUNDUP(SUM(K$14:K22),2) -> 136.6
B25: NON-FOOD ITEMS: KITS AND / OR UNITS
B26: DESCRIPTION | E26: PACKAGING / UNIT MEASURE | F26: UNIT WEIGHT (KG) (e) | G26: UNIT VOLUME (Cubic M) (f) | H26: UNITS PER HOUSEHOLD (g) | I26: TOTAL WEIGHT (KG) (e * h) | J26: TOTAL UNITS REQ'D (h = B * g) | K26: TOTAL VOLUME (Cubic M) (f * h)
B27: Blanket, 50% wool, 1.5m x 2m | E27: Each | F27: 1.40 | G27: 0.005 | H27: 3.00 | I27: =IF(H27=0,0,(F27*J27)) -> 4,200.0 | J27: =ROUNDUP(IF(H27=0,0,$I$7*H27),0) -> 3,000 | K27: =IF(G27=0,0,J27*G27) -> 15.0
B28: Plastic Sheet, 4m x 6m | E28: Each | F28: 5.40 | G28: 0.011 | H28: 1.00 | I28: 5,400.0 | J28: 1,000 | K28: 11.0
B29: Kitchen Set | E29: Carton | F29: 5.00 | G29: 0.040 | H29: 1.00 | I29: 5,000.0 | J29: 1,000 | K29: 40.0
I30: 0.0 | J30: 0 | K30: 0.0
I31: =IF(H31=0,0,(F31*J31)) -> 0.0 | J31: =ROUNDUP(IF(H31=0,0,$I$7*H31),0) -> 0 | K31: =IF(G31=0,0,J31*G31) -> 0.0
I32: 0.0 | J32: 0 | K32: 0.0
I33: 0.0 | J33: 0 | K33: 0.0
I34: 0.0 | J34: 0 | K34: 0.0
I35: 0.0 | J35: 0 | K35: 0.0
I36: 0.0 | J36: 0 | K36: 0.0
I37: =IF(H37=0,0,(F37*J37)) -> 0.0 | J37: =ROUNDUP(IF(H37=0,0,$I$7*H37),0) -> 0 | K37: =IF(G37=0,0,J37*G37) -> 0.0
I38: 0.0 | J38: 0 | K38: 0.0
I39: 0.0 | J39: 0 | K39: 0.0
I40: 0.0 | J40: 0 | K40: 0.0
I41: 0.0 | J41: 0 | K41: 0.0
I42: 0.0 | J42: 0 | K42: 0.0
I43: 0.0 | J43: 0 | K43: 0.0
B44: KITS AND UNITS -- COLUMN TOTALS: | I44: =ROUNDUP(SUM(I$27:I43),0) -> 14,600.0 | J44: =SUM(J27:J43) -> 5,000 | K44: =ROUNDUP(SUM(K$27:K43),2) -> 66.0
B46: TOTAL COMMODITY WEIGHT AND VOLUME TO DELIVER TO SITE: | I46: TOTAL KG of Commodities | J46: TOTAL MT of Commodities | K46: TOTAL VOLUME M3 of Commodities
I47: =FoodWeight+NFIWeight -> 101,675 | J47: =TotalKG/1000 -> 101.7 | K47: =FoodVolume+NFIVolume -> 202.6
B49: TRANSPORT REQUIREMENTS
B50: DELIVERY TIME (DAYS) (Q) | C50: ROUND TRIP TIME (HOURS) (R) | D50: EXCESS CAPACITY (S) | E50: POSSIBLE TRIPS PER TRANSPORT ASSET (T = (Q / (R / 24)) | G50: AVG. TRANSPORT CAPACITY (MT) (U) | H50: AVG. TRANSPORT CAPACITY (M3) (V) | I50: No. OF FULL LOADS BY WEIGHT (TOTAL MT / U) | J50: No. OF FULL LOADS BY VOLUME (TOTAL M3 / V) | K50: NO. OF TRANSPORT ASSETS REQ'D
B51: 4 | C51: 24 | D51: 20% | E51: =IF(RoundTripTime=0,0,ROUNDDOWN(DeliveryTime/(RoundTripTime/24),0)) -> 4 | G51: 8.0 | H51: 20.0 | I51: =IF(AvgCapacity=0,0,ROUNDUP(TotalMT/AvgCapacity,0)) -> 13 | J51: =IF(AvgCapacityM3=0,0,ROUNDUP(TotalVolume/AvgCapacityM3,0)) -> 11 | K51: =IF(FullLoadsWeight=0,0,IF(FullLoadsWeight>=FullLoadsVolume,(ROUNDUP((FullLoadsWeight/Possibletrips)*(1+ExcessCapacity),0)),(ROUNDUP((FullLoadsVolume/Possibletrips)*(1+ExcessCapacity),0)))) -> 4
C53: PREPARED AND SUBMITTED BY | G53: REVIEWED AND APPROVED | J53: DATE
B56: Commodity | C56: Column1 | D56: Volume | E56: Weight | F56: Package
B57: Beans (100 KG sacks) | D57: 0.160 | E57: 100.00 | F57: Sack | G57: Bale
B58: Beans (50 KG sacks) | D58: 0.080 | E58: 50.00 | F58: Sack | G58: Barrel
B59: Bulgur - SFB (50 KG sacks) | D59: 0.080 | E59: 50.00 | F59: Sack | G59: Bottle
B60: Bulgur Wheat | D60: 0.080 | E60: 50.00 | F60: Sack | G60: Box
B61: Corn, grain (100 KG sacks) | D61: 0.160 | E61: 100.00 | F61: Sack | G61: Can
B62: Corn, grain (50 KG sacks) | D62: 0.080 | E62: 50.00 | F62: Sack | G62: Carton
B63: Cornmeal | D63: 0.040 | E63: 25.00 | F63: Sack | G63: Each
B64: Cornmeal - SF | D64: 0.040 | E64: 25.00 | F64: Sack | G64: KG
B65: CSB | D65: 0.040 | E65: 25.00 | F65: Sack | G65: Liter
B66: CSM | D66: 0.040 | E66: 25.00 | F66: Sack | G66: Meter
B67: CSMF | D67: 0.040 | E67: 25.00 | F67: Sack | G67: MT
B68: Lentils (25 KG sacks) | D68: 0.040 | E68: 25.00 | F68: Sack | G68: Roll
B69: Lentils (50 KG sacks) | D69: 0.080 | E69: 50.00 | F69: Sack | G69: Sack
B70: Peas (100 KG sacks) | D70: 0.160 | E70: 100.00 | F70: Sack | G70: Tin
B71: Peas (50 KG sacks) | D71: 0.080 | E71: 50.00 | F71: Sack
B72: Rice (100 KG sacks) | D72: 0.160 | E72: 100.00 | F72: Sack
B73: Rice (50 KG sacks) | D73: 0.080 | E73: 50.00 | F73: Sack
B74: Salt, Iodized (25 KG sacks) | D74: =0.035 -> 0.035 | E74: 25.00 | F74: Sack
B75: Salt, Iodized (50 KG sacks) | D75: 0.070 | E75: 50.00 | F75: Sack
B76: Sorghum (100 KG sacks) | D76: 0.160 | E76: 100.00 | F76: Sack
B77: Sorghum (50 KG sacks) | D77: 0.080 | E77: 50.00 | F77: Sack
B78: UNIMIX | D78: 0.040 | E78: 25.00 | F78: Sack
B79: Veg oil, 200 L Drums | D79: =210/1000 -> 0.210 | E79: =(4.6/5)*208 -> 191.36 | F79: Drum
B80: Veg oil, 4L Tins | D80: =1.1*0.004*6 -> 0.026 | E80: =1.05*((4.6/5)*4)*6 -> 23.18 | F80: Carton of 6
B81: Veg oil, 5L Jugs | D81: =1.1*0.005*4 -> 0.022 | E81: =1.05*((4.6/5)*5)*4 -> 19.32 | F81: Carton of 4
B82: Veg, 20L Drums | D82: =1.1*(20/1000) -> 0.022 | E82: =1.05*((4.6/5)*20) -> 19.32 | F82: Drum
B83: Wheat Flour, AP | D83: 0.080 | E83: 50.00 | F83: Sack
B84: Wheat Flour, bread | D84: 0.080 | E84: 50.00 | F84: Sack
B85: Wheat Soy Blend (WSB) | D85: 0.040 | E85: 25.00 | F85: Sack
B86: Wheat Soy Milk (WSM) | D86: 0.040 | E86: 25.00 | F86: Sack
